Department Family,Entity,Pay date,Expense Type(T),Expense Area(T),Supplier(T),Transaction Number,Amount,Description
NS&I,NS&I,15/02/2023,Unitary fee - Outsource partner,Commercial and Legal,Atos IT Services UK Ltd,4022755,"4,730,534.57",Unitary service charge - February 2023
NS&I,NS&I,22/02/2023,Demand-linked costs - Outsource partner,Delivery & Monitoring,Atos IT Services UK Ltd,4022786,"2,863,861.00",Demand link service charge - January 2023
NS&I,NS&I,24/02/2023,Unitary fee - Outsource partner,B2B Government Payment Services,Atos IT Services UK Ltd,4022840,"1,833,541.83",Tax-free childcare service charges - February 2023
NS&I,NS&I,28/02/2023,Unitary fee - Outsource partner,B2B Government Payment Services,Atos IT Services UK Ltd,4022860,"653,970.00",Help to save service charges - February 2023
NS&I,NS&I,24/02/2023,Project costs - Outsource partner,Programme Delivery,Atos IT Services UK Ltd,4022851,"437,677.00",Process testing capability
NS&I,NS&I,24/02/2023,Project costs - Outsource partner,Programme Delivery,Atos IT Services UK Ltd,4022850,"411,751.00",Process testing capability
NS&I,NS&I,24/02/2023,Project costs - Outsource partner,Programme Delivery,Atos IT Services UK Ltd,4022849,"372,731.00",Process testing capability
NS&I,NS&I,24/02/2023,Unitary fee - Outsource partner,B2B Government Payment Services,Atos IT Services UK Ltd,4022841,"318,669.03",30 Hours service charges - February 2023
NS&I,NS&I,24/02/2023,Project costs - Outsource partner,Programme Delivery,Atos IT Services UK Ltd,4022820,"298,787.00",Service change costs
NS&I,NS&I,24/02/2023,Unitary fee - Outsource partner,B2B Government Payment Services,Atos IT Services UK Ltd,4022837,"291,725.59",Tax-free childcare service charges - December 2022
NS&I,NS&I,15/02/2023,Project costs - Outsource partner,Programme Delivery,Atos IT Services UK Ltd,4022754,"291,687.00",Enhancing operational flexibility
NS&I,NS&I,24/02/2023,Unitary fee - Outsource partner,B2B Government Payment Services,Atos IT Services UK Ltd,4022838,"342,206.12",Help to buy service charges February 2023
NS&I,NS&I,15/02/2023,Professional services - Other,Rainbow,Actica Consulting Ltd,4022775,"271,304.06",Strategic Business Design Support
NS&I,NS&I,24/02/2023,Unitary fee - Outsource partner,B2B Government Payment Services,Atos IT Services UK Ltd,4022853,"242,886.40",Help to save service charges - December 2022
NS&I,NS&I,08/02/2023,Professional services - Other,Finance,Atos IT Services UK Ltd,4022643,"211,016.00",Financial Ledger Annual Licence Cost 2022
NS&I,NS&I,15/02/2023,Professional services - Other,Rainbow,IBM United Kingdom Ltd,4022773,"203,782.85",IT service charges January 2023
NS&I,NS&I,24/02/2023,Project costs - Outsource partner,Programme Delivery,Atos IT Services UK Ltd,4022848,"184,171.00",Delivery of Test Environment Security Upgrades
NS&I,NS&I,08/02/2023,Professional services - Legal,Rainbow,Bevan Brittan LLP,4022719,"180,000.00",Legal Services January 2023
NS&I,NS&I,08/02/2023,Maintenance and running costs - Outsource partner,B2B & Operations Assurance,Atos IT Services UK Ltd,4022619,"176,043.00",Customer Service Improvements
NS&I,NS&I,22/02/2023,Professional services - Other,Information & Technology,Gartner Uk Ltd,4022778,"133,804.80",IT analyst and advisory service
NS&I,NS&I,15/02/2023,Project costs - Outsource partner,Programme Delivery,Atos IT Services UK Ltd,4022684,"127,634.00",Programme management cost January 2023
NS&I,NS&I,28/02/2023,Professional services - Other,Rainbow,Capgemini UK plc (SIAM Partner),4022855,"122,852.16",Service integration design
NS&I,NS&I,15/02/2023,Project costs - Outsource partner,Programme Delivery,Atos IT Services UK Ltd,4022685,"120,877.00",Service change costs
NS&I,NS&I,08/02/2023,Project costs - Outsource partner,Programme Delivery,Atos IT Services UK Ltd,4022664,"120,068.00",Data maintenance work
NS&I,NS&I,24/02/2023,Unitary fee - Outsource partner,B2B Government Payment Services,Atos IT Services UK Ltd,4022843,"117,903.36",Court Funds Office Service Charges December 2022
NS&I,NS&I,24/02/2023,Project costs - Outsource partner,Programme Delivery,Atos IT Services UK Ltd,4022822,"111,915.00",Service change costs
NS&I,NS&I,24/02/2023,Maintenance and running costs - Outsource partner,Information & Technology,Atos IT Services UK Ltd,4022827,"93,345.00",Delivering IT orchestration improvements January 2023
NS&I,NS&I,22/02/2023,Consultancy services,Rainbow,PA Consulting Services Ltd,4022796,"92,640.00",Strategic business advice and support
NS&I,NS&I,01/02/2023,Market research,Market Intelligence & Research,IPSOS MORI UK Ltd,4022638,"91,341.13",Subscription for Financial Research Survey
NS&I,NS&I,15/02/2023,Maintenance and running costs - Outsource partner,Business Insight,Atos IT Services UK Ltd,4022707,"90,245.00",Data warehouse development work
NS&I,NS&I,15/02/2023,Business intelligence and analysis,Market Intelligence & Research,"Curinos International Limited, formally MAPA INTERNATIONAL LTD",4022739,"90,000.00",Digital insights research
NS&I,NS&I,24/02/2023,Unitary fee - Outsource partner,B2B Government Payment Services,Atos IT Services UK Ltd,4022833,"81,292.53",Tax-free childcare service charges - December 2022
NS&I,NS&I,24/02/2023,Unitary fee - Outsource partner,B2B Government Payment Services,Atos IT Services UK Ltd,4022834,"81,292.53",30 Hours service charges - December 2022
NS&I,NS&I,24/02/2023,Advertising agency costs,Marketing Communications,FCB Inferno Limited,4022825,"66,398.21",Cost of Marketing Campaigns
NS&I,NS&I,15/02/2023,Project costs - Outsource partner,Programme Delivery,Atos IT Services UK Ltd,4022759,"64,323.00",Enhancing customer journeys
NS&I,NS&I,15/02/2023,Maintenance and running costs - Outsource partner,Information & Technology,Atos IT Services UK Ltd,4022751,"63,639.00",Delivering IT orchestration improvements December 2022
NS&I,NS&I,15/02/2023,Project costs - Outsource partner,Programme Delivery,Atos IT Services UK Ltd,4022760,"59,040.00",Enhancing customer journeys
NS&I,NS&I,28/02/2023,Project costs - Outsource partner,Programme Delivery,Atos IT Services UK Ltd,4022858,"55,244.00",Data maintenance work
NS&I,NS&I,24/02/2023,Building services charge,Workplace & Culture,Atos IT Services UK Ltd,4022818,"52,764.00",London office relocation project
NS&I,NS&I,08/02/2023,Demand-linked costs - Outsource partner,Delivery & Monitoring,Atos IT Services UK Ltd,4022666,"52,549.00",Demand link service charge - December 2022
NS&I,NS&I,08/02/2023,Project costs - Outsource partner,Programme Delivery,Atos IT Services UK Ltd,4022606,"50,114.00",Improving customer communication channels
NS&I,NS&I,24/02/2023,Advertising and production,Marketing Communications,Manning Gottlieb OMD,4022854,"50,015.03",Cost of Marketing Campaigns
NS&I,NS&I,24/02/2023,Unitary fee - Outsource partner,B2B Government Payment Services,Atos IT Services UK Ltd,4022844,"49,859.12",Tax-free Childcare service charges December 2022
NS&I,NS&I,01/02/2023,Professional services - Other,Design & Validation,Discovery Research Ltd.,4022667,"48,710.40",Improving customer communication channels
NS&I,NS&I,24/02/2023,Project costs - Outsource partner,Programme Delivery,Atos IT Services UK Ltd,4022821,"48,264.00",Improving customer payment facilities
NS&I,NS&I,15/02/2023,Project costs - Outsource partner,Programme Delivery,Atos IT Services UK Ltd,4022761,"46,477.00",Enhancing customer security
NS&I,NS&I,15/02/2023,Project costs - Outsource partner,Programme Delivery,Atos IT Services UK Ltd,4022770,"44,898.00",Replacement of corporate devices
NS&I,NS&I,08/02/2023,Project costs - Outsource partner,Programme Delivery,Atos IT Services UK Ltd,4022607,"43,716.00",Strategic customers Research
NS&I,NS&I,22/02/2023,Project costs - Outsource partner,Programme Delivery,Atos IT Services UK Ltd,4022801,"43,520.00",Delivery of Test Environment Security Upgrades
NS&I,NS&I,08/02/2023,Project costs - Outsource partner,Programme Delivery,Atos IT Services UK Ltd,4022641,"39,290.00",Compliance with data regulations
NS&I,NS&I,08/02/2023,Professional services - Other,Rainbow,Bloom Procurement Services Limited,4022711,"37,800.00",Enhancing delivery channels
NS&I,NS&I,22/02/2023,Project costs - Outsource partner,Programme Delivery,Atos IT Services UK Ltd,4022780,"37,374.00",Improvements to data management
NS&I,NS&I,22/02/2023,Project costs - Outsource partner,Programme Delivery,Atos IT Services UK Ltd,4022788,"34,402.00",Data maintenance work
NS&I,NS&I,24/02/2023,Project costs - Outsource partner,Programme Delivery,Atos IT Services UK Ltd,4022819,"32,382.00",Strategic customers Research
NS&I,NS&I,08/02/2023,Professional services - Other,Complaint's Management,Financial Ombudsman Services,4022691,"32,250.00",Case Fee Charges February 2023
NS&I,NS&I,15/02/2023,Maintenance and running costs - Outsource partner,Information & Technology,Atos IT Services UK Ltd,4022703,"26,539.00",FA portal website service costs
NS&I,NS&I,24/02/2023,Demand-linked costs - Outsource partner,Delivery & Monitoring,Atos IT Services UK Ltd,4022852,"26,274.00",Demand link service charge - February 2023
NS&I,NS&I,15/02/2023,Project costs - Outsource partner,Programme Delivery,Atos IT Services UK Ltd,4022738,"26,015.00",Data maintenance work
NS&I,NS&I,08/02/2023,Project costs - Outsource partner,Programme Delivery,Atos IT Services UK Ltd,4022608,"25,446.00",Strategic change planning
NS&I,NS&I,15/02/2023,Direct marketing,Marketing Communications,Unlimited Group United Ltd,4022743,"25,093.94",Cost of Marketing Campaigns
